bitfinex/quotes_BTCUSD_20240605
["timestamp","ask_amount","ask_price","bid_price","bid_amount"]
[1717566295941,2.20583861,70952.0,70951.0,1e-08]
[1717566296590,2.05753861,70952.0,70951.0,1e-08]
[1717566297632,1.95835513,70952.0,70951.0,1e-08]
[1717566297862,2.04483861,70952.0,70951.0,1e-08]
[1717566298065,1.97803861,70952.0,70951.0,1e-08]
[1717566298273,2.03083861,70952.0,70940.0,0.09138199]
[1717566298480,1.03922893,70941.0,70940.0,0.02086399]
[1717566298683,1.20602893,70941.0,70940.0,0.02086399]
[1717566298994,1.21684449,70941.0,70940.0,0.02086399]
[1717566300934,1.22184449,70941.0,70940.0,0.02086399]
[1717566301351,1.26875521,70941.0,70940.0,0.02086399]
[1717566301810,1.20195521,70941.0,70940.0,0.02086399]
[1717566302026,1.26875521,70941.0,70940.0,0.02086399]
[1717566302237,1.26875521,70941.0,70940.0,0.02118017]
[1717566302448,1.26875521,70941.0,70940.0,0.02853456]
[1717566302675,1.26879521,70941.0,70940.0,0.02885108]
[1717566302888,1.26879521,70941.0,70940.0,0.02149669]
[1717566303090,1.22688449,70941.0,70940.0,0.02149669]
[1717566303627,1.22688449,70941.0,70940.0,0.02118017]
[1717566304678,1.22688449,70941.0,70940.0,0.02149669]
[1717566305173,1.22688449,70941.0,70940.0,0.02086399]
[1717566306142,1.22688449,70941.0,70940.0,0.02118017]
[1717566306428,1.22688449,70941.0,70940.0,0.02086399]
[1717566306663,1.22688449,70941.0,70940.0,0.02149669]
[1717566306916,1.17687175,70941.0,70940.0,0.02885108]
[1717566307172,1.24367175,70941.0,70940.0,0.02821838]
[1717566307393,1.24367175,70941.0,70940.0,0.02086399]
[1717566310093,1.17687175,70941.0,70940.0,0.02086399]
[1717566310330,1.24367175,70941.0,70940.0,0.02086399]
[1717566311282,0.70483,70939.0,70938.0,0.0482]
[1717566311497,0.94924893,70939.0,70938.0,0.0482]
[1717566311874,0.96001261,70939.0,70938.0,0.0482]
[1717566312423,0.96001261,70939.0,70938.0,0.04851618]
[1717566312624,0.96301261,70939.0,70938.0,0.0488327]
[1717566313043,0.96601261,70939.0,70938.0,0.0488327]
[1717566313877,0.96601261,70939.0,70938.0,0.04851618]
[1717566314079,0.96601261,70939.0,70938.0,0.0488327]
[1717566314631,0.96601261,70939.0,70938.0,0.04851618]
[1717566314834,0.96601261,70939.0,70938.0,0.0482]
[1717566315171,0.96605261,70939.0,70938.0,0.0482]
[1717566315764,0.96605261,70939.0,70938.0,0.0488327]
[1717566316363,0.96605261,70939.0,70938.0,0.04851618]
[1717566316568,0.96605261,70939.0,70938.0,0.0488327]
[1717566317448,0.96605261,70939.0,70938.0,0.0006327]
[1717566318109,0.70484,70938.0,70937.0,0.0211]
[1717566318311,1.01605893,70938.0,70937.0,0.0211]
[1717566318536,1.02681824,70938.0,70937.0,0.0211]
[1717566318942,1.02681824,70938.0,70937.0,0.02141618]
[1717566319082,1.02681824,70938.0,70937.0,0.0211]
[1717566319487,1.02881824,70938.0,70937.0,0.0211]
[1717566320334,0.42291,70937.0,70936.0,0.00031618]
[1717566320537,0.94926893,70937.0,70936.0,0.00031618]
[1717566320747,0.96002677,70937.0,70936.0,0.00031618]
[1717566321898,0.70486,70936.0,70935.0,0.0038472]
[1717566322105,1.02577893,70936.0,70935.0,0.0038472]
[1717566322276,0.96003239,70936.0,70935.0,0.0038472]
[1717566323892,1.02683239,70936.0,70935.0,0.0038472]
[1717566325437,0.96007239,70936.0,70935.0,0.0038472]
[1717566325672,1.02687239,70936.0,70935.0,0.0038472]
[1717566326639,1.02687239,70936.0,70935.0,0.00416338]
[1717566327450,1.02687239,70936.0,70935.0,0.0044799]
[1717566328050,0.96007239,70936.0,70935.0,0.0044799]
[1717566328289,1.02687239,70936.0,70935.0,0.0255799]
[1717566330229,0.67812839,70936.0,70935.0,0.09458078]
[1717566331531,0.17623509,70935.0,70934.0,0.1804289]
[1717566331733,0.42065402,70935.0,70934.0,0.1804289]
[1717566331944,0.71337046,70935.0,70934.0,0.1804289]
[1717566333483,0.71237046,70935.0,70934.0,0.1804289]
[1717566333718,0.71237046,70935.0,70934.0,0.19961999]
[1717566335047,0.99431846,70935.0,70934.0,0.1804289]
[1717566335455,1.06111846,70935.0,70934.0,0.1804289]
[1717566335658,0.99431846,70935.0,70934.0,0.1804289]
[1717566335876,1.06111846,70935.0,70934.0,0.1804289]
[1717566337740,0.99431846,70935.0,70934.0,0.1804289]
[1717566337940,1.06111846,70935.0,70934.0,0.1804289]
[1717566339976,0.99431846,70935.0,70934.0,0.1804289]
[1717566340127,1.06111846,70935.0,70934.0,0.1804289]
[1717566340340,0.71237046,70935.0,70934.0,0.21961999]
[1717566341342,0.43042246,70935.0,70934.0,0.21961999]
[1717566343868,0.43042246,70935.0,70934.0,0.19961999]
[1717566344359,0.4301052,70935.0,70934.0,0.19961999]
[1717566344970,0.43605633,70935.0,70934.0,0.19961999]
[1717566346406,0.43605633,70935.0,70934.0,0.21961999]
[1717566348260,0.43004742,70935.0,70934.0,0.21961999]
[1717566348884,0.43004742,70935.0,70934.0,0.2004289]
[1717566350093,0.43008742,70935.0,70934.0,0.1804289]
[1717566350293,0.71203542,70935.0,70934.0,0.1804289]
[1717566350895,0.71186575,70935.0,70934.0,0.1804289]
[1717566352080,0.95276575,70935.0,70934.0,0.1804289]
[1717566352928,0.95276575,70935.0,70934.0,0.19961999]
[1717566354206,0.71186575,70935.0,70934.0,0.19961999]
[1717566354450,0.71186575,70935.0,70934.0,0.21961999]
[1717566355635,0.71286575,70935.0,70934.0,0.22056599]
[1717566356224,0.71372575,70935.0,70934.0,0.22056599]
[1717566356422,0.71372575,70935.0,70934.0,0.20056599]
[1717566357413,0.71372575,70935.0,70934.0,0.22056599]
[1717566357623,0.71572575,70935.0,70934.0,0.22056599]
[1717566357828,0.96182575,70935.0,70934.0,0.20056599]
[1717566358177,0.79762575,70935.0,70934.0,0.20056599]
[1717566359821,0.79762575,70935.0,70934.0,0.1813749]
[1717566359822,1.06447375,70935.0,70934.0,0.1813749]
[1717566360023,1.30047375,70935.0,70934.0,0.1813749]
[1717566361576,1.23367375,70935.0,70934.0,0.1813749]
[1717566362212,0.95172575,70935.0,70934.0,0.1813749]
[1717566363074,0.71572575,70935.0,70934.0,0.2013749]
[1717566363276,0.71572575,70935.0,70934.0,0.22266059]
[1717566363491,0.43377775,70935.0,70934.0,0.22266059]
[1717566364540,0.43377775,70935.0,70934.0,0.28946059]
[1717566365186,0.19080375,70935.0,70934.0,0.48946059]
[1717566365401,0.19080375,70935.0,70934.0,0.28946059]
[1717566365611,0.18980375,70935.0,70934.0,0.48946059]
[1717566365832,0.18980375,70935.0,70934.0,0.56168883]
[1717566366491,0.19080375,70935.0,70934.0,0.56168883]
[1717566366700,0.18980375,70935.0,70934.0,0.56168883]
[1717566367122,0.18009309,70935.0,70934.0,0.56168883]
[1717566368386,0.03567416,70935.0,70934.0,0.56168883]
[1717566368621,0.03567416,70935.0,70934.0,0.60393882]
[1717566369042,0.03567416,70935.0,70934.0,0.62506382]
[1717566369485,0.03567416,70935.0,70934.0,0.76603982]
[1717566369703,0.03667416,70935.0,70934.0,0.70266483]
[1717566369947,0.03667416,70935.0,70934.0,0.71324239]
[1717566370371,0.03467416,70935.0,70934.0,0.70266483]
[1717566370587,0.03567416,70935.0,70934.0,0.70266483]
[1717566370817,0.03667416,70935.0,70934.0,0.70266483]
[1717566371043,0.0029,70935.0,70934.0,0.70266483]
[1717566371462,0.0029,70935.0,70934.0,0.76592937]
[1717566372103,0.0029,70935.0,70934.0,0.70266483]
[1717566372307,0.0029,70935.0,70934.0,0.7659144]
[1717566374742,0.0029,70935.0,70934.0,0.8889144]
[1717566374959,0.0029,70935.0,70934.0,0.82566483]
[1717566375546,0.0019,70935.0,70934.0,0.93099278]
[1717566375761,0.0029,70935.0,70934.0,0.93099278]
[1717566376512,0.0019,70935.0,70934.0,0.82566483]
[1717566376733,0.0019,70935.0,70934.0,0.93099278]
[1717566376933,0.0019,70935.0,70934.0,0.82566483]
[1717566377340,0.0029,70935.0,70934.0,0.82566483]
[1717566378176,0.0029,70935.0,70934.0,0.9098674]
[1717566378744,0.0029,70935.0,70934.0,0.9238674]
[1717566378945,0.0029,70935.0,70934.0,0.85023855]
[1717566379334,0.0029,70935.0,70934.0,0.88880796]
[1717566379747,0.0029,70935.0,70934.0,0.90280796]
[1717566380170,0.0029,70935.0,70934.0,0.83966483]
[1717566380386,0.0029,70935.0,70934.0,0.90280796]
[1717566381011,0.0029,70935.0,70934.0,0.83966483]
[1717566381910,0.0029,70935.0,70934.0,1.18475996]
[1717566382367,0.0029,70935.0,70934.0,1.12161683]
[1717566382989,0.0029,70935.0,70934.0,1.19533368]
[1717566383605,0.0029,70935.0,70934.0,1.13219055]
[1717566383811,0.0029,70935.0,70934.0,1.12161683]
[1717566384021,0.0029,70935.0,70934.0,1.19533368]
[1717566384229,0.00273033,70935.0,70934.0,1.12161683]
[1717566384603,0.00273033,70935.0,70934.0,1.13219055]
[1717566384827,0.00273033,70935.0,70934.0,1.19533368]
[1717566385212,0.00273033,70935.0,70934.0,1.12161683]
[1717566385404,0.00273033,70935.0,70934.0,1.06539055]
[1717566385613,0.00273033,70935.0,70934.0,1.13219055]
[1717566386041,0.00273033,70935.0,70934.0,1.12161683]
[1717566386247,0.00273033,70935.0,70934.0,1.50356883]
[1717566386475,4e-05,70936.0,70935.0,0.842922]
[1717566386686,4e-05,70936.0,70935.0,1.26977909]
[1717566387846,4e-05,70936.0,70935.0,1.55172709]
[1717566388664,0.00104,70936.0,70935.0,1.56372709]
[1717566390392,0.00104,70936.0,70935.0,1.52439939]
[1717566390597,0.00104,70936.0,70935.0,1.59119939]
[1717566390798,0.00204,70936.0,70935.0,1.60519939]
[1717566391028,0.00204,70936.0,70935.0,1.50010816]
[1717566391206,0.00204,70936.0,70935.0,1.58417722]
[1717566391632,0.00204,70936.0,70935.0,1.56985693]
[1717566391840,0.00204,70936.0,70935.0,1.48578787]
[1717566392050,0.00204,70936.0,70935.0,1.54884192]
[1717566393247,0.00204,70936.0,70935.0,1.48578787]
[1717566393676,0.00204,70936.0,70935.0,1.54883692]
[1717566394227,0.00204,70936.0,70935.0,1.48578787]
[1717566394640,0.00204,70936.0,70935.0,1.54883579]
[1717566395070,0.00204,70936.0,70935.0,1.48578787]
[1717566395899,0.00204,70936.0,70935.0,1.5488355]
[1717566396261,0.00204,70936.0,70935.0,1.48578787]
[1717566396477,0.00204,70936.0,70935.0,1.56985693]
[1717566396898,0.00204,70936.0,70935.0,1.48578787]
[1717566397261,0.00204,70936.0,70935.0,1.5023925]
[1717566398493,0.16544,70952.0,70951.0,0.360942]
[1717566398703,0.17583932,70952.0,70951.0,0.4638362]
[1717566400300,0.17683932,70952.0,70951.0,0.4898362]
[1717566403524,0.17683932,70952.0,70951.0,0.4230362]
[1717566403784,0.01233932,70952.0,70951.0,0.4898362]
[1717566405307,0.01233932,70952.0,70951.0,0.4230362]
[1717566405496,0.01233932,70952.0,70951.0,0.4898362]
[1717566409326,0.01233932,70952.0,70951.0,0.50040885]
[1717566410387,0.01233932,70952.0,70951.0,0.47564406]
[1717566410558,0.01233932,70952.0,70951.0,0.53187141]
[1717566410784,0.00194,70952.0,70951.0,0.53187141]
[1717566411337,0.00194,70952.0,70951.0,0.4898362]
[1717566411445,0.00194,70952.0,70951.0,0.55288902]
[1717566411657,0.15671416,70954.0,70953.0,0.360938]
[1717566411863,0.15671416,70954.0,70953.0,0.43691366]
[1717566412111,0.15671416,70954.0,70953.0,0.47907888]
[1717566413114,0.1,70972.0,70971.0,0.02]
[1717566413337,0.14441893,70972.0,70971.0,0.02]
[1717566413536,0.25491827,70972.0,70971.0,0.02]
[1717566414387,0.39581827,70972.0,70971.0,0.02]
[1717566414807,0.25491827,70972.0,70971.0,0.00868]
[1717566415065,0.25491827,70972.0,70971.0,0.02868]
[1717566415275,0.62871827,70972.0,70971.0,0.02868]
[1717566415481,0.63771827,70972.0,70971.0,0.022]
[1717566416324,0.62871827,70972.0,70971.0,0.021]
[1717566417896,0.63871827,70972.0,70971.0,0.022]
[1717566418735,0.63871827,70972.0,70971.0,0.023]
[1717566425335,0.63871827,70972.0,70971.0,0.003]
[1717566425544,0.63871827,70972.0,70971.0,0.023]
[1717566427111,0.63871827,70972.0,70971.0,0.003]
[1717566427350,0.63871827,70972.0,70971.0,0.023]
[1717566429234,0.16491827,70972.0,70971.0,0.0898]
[1717566429344,0.16491827,70972.0,70971.0,0.46024561]
[1717566429550,0.02049934,70972.0,70971.0,0.46024561]
[1717566429756,0.01,70972.0,70971.0,0.53554561]
[1717566430005,0.01,70972.0,70971.0,0.61998163]
[1717566430209,0.01,70972.0,70971.0,0.53554561]
[1717566430410,0.004,70979.0,70978.0,0.360888]
[1717566430611,0.14841893,70979.0,70978.0,0.4637768]
[1717566430935,0.15897769,70979.0,70978.0,0.4637768]
[1717566431142,0.15897769,70979.0,70978.0,0.50598217]
[1717566431267,0.15897769,70979.0,70978.0,0.4637768]
[1717566432529,0.15897769,70979.0,70978.0,0.2637768]
[1717566433109,0.15897769,70979.0,70978.0,0.4747768]
[1717566433726,0.15897769,70979.0,70978.0,0.4757768]
[1717566433727,0.15997769,70979.0,70978.0,0.4757768]
[1717566434036,0.15997769,70979.0,70978.0,0.4877768]
[1717566434488,0.15897769,70979.0,70978.0,0.4757768]
[1717566434910,0.15997769,70979.0,70978.0,0.4877768]
[1717566435792,0.15997769,70979.0,70978.0,0.4997768]
[1717566436020,0.16001769,70979.0,70978.0,0.4997768]
[1717566436591,0.16001769,70979.0,70978.0,0.4757768]
[1717566436806,0.00504,70979.0,70978.0,0.4877768]
[1717566438598,0.01561674,70979.0,70978.0,0.4877768]
[1717566441420,0.00504,70979.0,70978.0,0.5012768]
[1717566441667,0.00504,70979.0,70978.0,0.2209768]
[1717566441862,0.15804,70979.0,70978.0,0.2209768]
[1717566442057,0.15804,70979.0,70978.0,0.4877768]
[1717566442263,0.16864918,70979.0,70978.0,0.2877768]
[1717566442508,0.15804,70979.0,70978.0,0.2877768]
[1717566442622,0.16864918,70979.0,70978.0,0.2877768]
[1717566443468,0.16864918,70979.0,70978.0,0.1468888]
[1717566444936,0.16864918,70979.0,70978.0,0.3468888]
[1717566445540,0.16864918,70979.0,70978.0,0.1468888]
[1717566447417,0.16864918,70979.0,70978.0,0.0800888]
[1717566447625,0.16864918,70979.0,70978.0,0.1468888]
[1717566448439,0.01564918,70979.0,70978.0,0.1468888]
[1717566448637,0.00504,70979.0,70978.0,0.3468888]
[1717566448835,0.01564918,70979.0,70978.0,0.3468888]
[1717566449422,0.00504,70979.0,70978.0,0.3468888]
[1717566449682,0.0156496,70979.0,70978.0,0.3468888]
[1717566449849,0.00504,70979.0,70978.0,0.3468888]
[1717566450090,0.0156496,70979.0,70978.0,0.3468888]
[1717566450205,0.00504,70979.0,70978.0,0.3468888]
[1717566450442,0.0156496,70979.0,70978.0,0.3468888]
[1717566451488,0.0156496,70979.0,70978.0,0.1468888]
[1717566453870,0.0146496,70979.0,70978.0,0.1468888]
[1717566454761,0.0155096,70979.0,70978.0,0.1468888]
[1717566454896,0.40862853,70979.0,70978.0,0.0600888]
[1717566455099,0.40862853,70979.0,70978.0,0.024]
[1717566459272,0.40862853,70979.0,70978.0,0.1108]
[1717566459457,0.40862853,70979.0,70978.0,0.0908]
[1717566459655,0.40862853,70979.0,70978.0,0.024]
[1717566461428,0.40862853,70979.0,70978.0,0.044]
[1717566461629,0.40862853,70979.0,70978.0,0.05508]
[1717566462820,0.40863201,70979.0,70978.0,0.05508]
[1717566466405,0.40863201,70979.0,70978.0,0.024]
[1717566466808,0.61631801,70979.0,70978.0,0.024]
[1717566466935,0.54951801,70979.0,70978.0,0.019]
[1717566467136,0.64951801,70979.0,70978.0,0.019]
[1717566467545,0.64951801,70979.0,70978.0,0.007]
[1717566467977,0.65051801,70979.0,70978.0,0.007]
[1717566468183,0.140912,70967.0,70959.0,0.04215517]
[1717566468508,0.1632,70965.0,70960.0,0.45339624]
[1717566468713,0.14441893,70964.0,70960.0,0.02002679]
[1717566468918,0.14441893,70964.0,70956.0,0.0668]
[1717566468919,0.15404161,70964.0,70956.0,0.0668]
[1717566469363,0.29495761,70964.0,70956.0,0.0668]
[1717566469561,0.29495761,70964.0,70954.0,0.020946]
[1717566469766,0.1632,70963.0,70954.0,0.000946]
[1717566469968,0.14441893,70962.0,70956.0,0.0668]
[1717566470141,0.15403433,70962.0,70957.0,0.01299012]
[1717566470907,0.217422,70961.0,70957.0,0.01299012]
[1717566471108,0.1644,70958.0,70957.0,0.01299012]
[1717566471312,0.53024693,70958.0,70956.0,0.013]
[1717566471483,0.14441893,70957.0,70956.0,0.013]
[1717566471699,0.15400542,70957.0,70956.0,0.013]
[1717566472305,0.15400542,70957.0,70954.0,0.000946]
[1717566472522,0.15400542,70957.0,70955.0,0.07222824]
[1717566472886,0.15400542,70957.0,70955.0,0.09222824]
[1717566473157,0.15400542,70957.0,70956.0,0.02]
[1717566473446,0.15500542,70957.0,70956.0,0.0868]
[1717566474034,0.15400542,70957.0,70956.0,0.0868]
[1717566474197,0.15500542,70957.0,70956.0,0.12367488]
[1717566474836,0.15500542,70957.0,70956.0,0.1008]
[1717566476098,0.00958649,70957.0,70956.0,0.3008]
[1717566476323,0.00958649,70957.0,70956.0,0.1008]
[1717566476522,0.1508,70963.0,70962.0,0.02]
[1717566476754,0.29521893,70963.0,70961.0,0.02]
[1717566476958,0.00739819,70963.0,70962.0,0.03763639]
[1717566477101,0.00739819,70963.0,70962.0,0.53972]
[1717566477343,0.0039,70979.0,70972.0,0.02]
[1717566477569,0.14441893,70978.0,70977.0,0.0668]
[1717566477936,0.14441893,70978.0,70977.0,0.07548]
[1717566477937,0.15238184,70978.0,70977.0,0.07548]
[1717566478529,0.15238184,70978.0,70977.0,0.00868]
[1717566480063,0.15238184,70978.0,70977.0,0.07548]
[1717566480661,0.15238184,70978.0,70977.0,0.07648]
[1717566480891,0.15238184,70978.0,70977.0,0.09648]
[1717566481149,0.15238184,70978.0,70977.0,0.10148]
[1717566481408,0.15238184,70978.0,70977.0,0.10048]
[1717566481650,0.15238184,70978.0,70977.0,0.09548]
[1717566483378,0.15238184,70978.0,70977.0,0.07548]
[1717566483613,0.15242184,70978.0,70977.0,0.09948]
[1717566484061,0.15016168,70978.0,70977.0,0.07048]
[1717566485897,0.15016168,70978.0,70977.0,0.00368]
[1717566486124,0.15016168,70978.0,70977.0,0.07548]
[1717566487347,0.15016168,70978.0,70977.0,0.09548]
[1717566488207,0.15016168,70978.0,70977.0,0.09048]
[1717566488591,0.15016168,70978.0,70977.0,0.10348]
[1717566489220,0.15016168,70978.0,70977.0,0.10048]
[1717566489465,0.15116168,70978.0,70977.0,0.11648]
[1717566489669,0.15116168,70978.0,70977.0,0.25737]
[1717566490088,0.00900291,70978.0,70977.0,0.25737]
[1717566490273,0.00104,70978.0,70977.0,0.25737]
[1717566492370,0.00104,70978.0,70977.0,0.19057]
[1717566492578,0.00104,70978.0,70977.0,0.25737]
[1717566494315,0.00104,70978.0,70977.0,0.19057]
[1717566494520,0.0090224,70978.0,70977.0,0.25737]
[1717566496854,0.0090224,70978.0,70977.0,0.47652392]
[1717566498862,0.0878224,70978.0,70977.0,0.38972392]
[1717566499079,0.0878224,70978.0,70977.0,0.45652392]
[1717566500356,0.0878224,70978.0,70977.0,0.47652392]
[1717566502811,0.0090224,70978.0,70977.0,0.47652392]
[1717566507245,0.0090224,70978.0,70977.0,0.48709268]
[1717566507441,0.00104,70978.0,70977.0,0.48709268]
[1717566507900,0.00104,70978.0,70977.0,0.47652392]
[1717566509992,0.00104,70978.0,70977.0,0.47651837]
[1717566513703,0.00902087,70978.0,70977.0,0.47651837]
[1717566513907,0.00902087,70978.0,70977.0,0.48708706]
[1717566514434,0.00902087,70978.0,70977.0,0.46708717]
[1717566514844,0.00902087,70978.0,70977.0,0.48708717]
[1717566515072,0.00902087,70978.0,70977.0,0.40028717]
[1717566515230,0.00902087,70978.0,70977.0,0.46708717]
[1717566515621,0.3997398,70978.0,70977.0,0.25940397]
[1717566515818,0.3997398,70978.0,70977.0,0.24515517]
[1717566516775,0.5406278,70978.0,70977.0,0.24515517]
[1717566522207,0.5406278,70978.0,70977.0,0.24518]
[1717566522418,0.5406278,70978.0,70977.0,0.347388]
[1717566523221,0.5406278,70978.0,70977.0,0.31198]
[1717566523829,0.5406278,70978.0,70977.0,0.31292801]
[1717566524049,0.3997398,70978.0,70977.0,0.31292801]
[1717566524199,0.4005998,70978.0,70977.0,0.31292801]
[1717566525627,0.1542998,70978.0,70977.0,0.31292801]
[1717566525824,0.1542998,70978.0,70977.0,0.36519509]
[1717566526102,0.14631893,70978.0,70977.0,0.36519509]
[1717566526359,0.15431912,70978.0,70977.0,0.36519509]
[1717566527523,0.15431912,70978.0,70977.0,0.40740962]
[1717566527728,0.14631893,70978.0,70977.0,0.40740962]
[1717566527930,0.15431745,70978.0,70977.0,0.36519509]
[1717566530825,0.15431745,70978.0,70977.0,0.24612801]
[1717566530826,0.37530545,70978.0,70977.0,0.24612801]
[1717566531031,0.82058245,70978.0,70977.0,0.24612801]
[1717566531244,0.84058245,70978.0,70977.0,0.24612801]
[1717566531456,1.00738245,70978.0,70977.0,0.24612801]
[1717566533730,0.98738245,70978.0,70977.0,0.24612801]
[1717566533929,0.92058245,70978.0,70977.0,0.24612801]
[1717566534641,0.92058245,70978.0,70977.0,0.22612801]
[1717566535194,0.92058245,70978.0,70977.0,0.006946]
[1717566535625,0.91958245,70978.0,70977.0,0.000946]
[1717566536225,0.91958245,70978.0,70977.0,0.22115221]
[1717566536226,0.93058245,70978.0,70977.0,0.22115221]
[1717566536408,0.93058245,70978.0,70977.0,0.24326743]
[1717566536612,0.93158245,70978.0,70977.0,0.24426743]
[1717566537382,0.93158245,70978.0,70977.0,0.002946]
[1717566537383,0.95158245,70978.0,70977.0,0.002946]
[1717566537584,0.93158245,70978.0,70977.0,0.002946]
[1717566538240,0.95158245,70978.0,70977.0,0.002946]
[1717566538673,0.96838724,70978.0,70977.0,0.002946]
[1717566541657,0.94838724,70978.0,70977.0,0.002946]
[1717566542065,0.96838724,70978.0,70977.0,0.002946]
[1717566542325,0.94838724,70978.0,70977.0,0.002946]
[1717566543096,0.96838724,70978.0,70977.0,0.002946]
[1717566549272,1.25016424,70978.0,70977.0,0.002946]
[1717566550184,1.53194124,70978.0,70977.0,0.002946]
[1717566550601,1.73194124,70978.0,70977.0,0.002946]
[1717566551310,0.140934,70955.0,70954.0,0.0097206]
[1717566551546,0.28535293,70955.0,70954.0,0.000946]
[1717566551759,0.2932323,70955.0,70954.0,0.000946]
[1717566552552,0.1522983,70955.0,70954.0,0.067746]
[1717566552767,0.1522983,70955.0,70954.0,0.158046]
[1717566553055,0.1522983,70955.0,70954.0,0.172046]
[1717566553482,0.1522983,70955.0,70954.0,0.205345]
[1717566554285,0.1532983,70955.0,70954.0,0.214345]
[1717566555074,0.00887937,70955.0,70954.0,0.234345]
[1717566555301,0.001,70955.0,70954.0,0.234345]
[1717566556706,0.001,70955.0,70954.0,0.375281]
[1717566557090,0.001,70955.0,70954.0,0.575281]
[1717566557397,0.001,70955.0,70954.0,0.71742446]
[1717566557616,0.001,70955.0,70954.0,0.75956792]
[1717566558333,0.001,70955.0,70954.0,0.675281]
[1717566559175,0.001,70955.0,70954.0,0.957153]
[1717566559777,0.001,70955.0,70954.0,0.675281]
[1717566559957,0.001,70955.0,70954.0,0.957153]
[1717566560090,0.001,70955.0,70954.0,1.06251165]
[1717566560293,0.2909,70978.0,70968.0,0.0953]
[1717566560294,0.140895,70975.0,70968.0,0.0953]
[1717566560510,0.14441893,70974.0,70969.0,0.01103]
[1717566562723,0.14441893,70974.0,70969.0,0.03103]
[1717566562942,0.14441893,70974.0,70969.0,0.01103]
[1717566563140,0.36841593,70974.0,70969.0,0.01103]
[1717566567243,0.37241593,70974.0,70969.0,0.01103]
[1717566567443,0.37241593,70974.0,70970.0,0.018783]
[1717566568586,0.37141593,70974.0,70970.0,0.018783]
[1717566569836,0.36741593,70974.0,70970.0,0.018783]
[1717566570442,0.37241593,70974.0,70970.0,0.019783]
[1717566570602,0.37441593,70974.0,70970.0,0.019783]
[1717566570812,0.37441593,70974.0,70971.0,0.0097613]
[1717566571875,0.36941593,70974.0,70971.0,0.0097613]
[1717566572208,0.36741593,70974.0,70971.0,0.0097613]
[1717566572420,0.00793508,70973.0,70971.0,0.0097613]
[1717566572621,0.14441893,70972.0,70971.0,0.0097613]
[1717566573048,0.15235088,70972.0,70971.0,0.0097613]
[1717566573763,0.15235088,70972.0,70971.0,0.0107613]
[1717566574430,0.15235088,70972.0,70971.0,0.0097613]
[1717566574431,0.15135088,70972.0,70971.0,0.0097613]
[1717566574650,0.15135088,70972.0,70971.0,0.0107613]
[1717566574853,0.15835088,70972.0,70971.0,0.0107613]
[1717566575064,0.01493195,70972.0,70971.0,0.1210613]
[1717566575296,0.01493195,70972.0,70971.0,0.1200613]
[1717566575297,0.00993195,70972.0,70971.0,0.1200613]
[1717566575504,0.002,70972.0,70971.0,0.1200613]
[1717566575708,0.0009,70978.0,70976.0,0.0753]
[1717566575914,0.14441893,70977.0,70976.0,0.1421]
[1717566576337,0.14441893,70977.0,70976.0,0.1621]
[1717566576583,0.14441893,70977.0,70976.0,0.1771]
[1717566577217,0.14441893,70977.0,70976.0,0.1571]
[1717566578952,0.14841893,70977.0,70976.0,0.1571]
[1717566579256,0.14841893,70977.0,70976.0,0.19459404]
[1717566580290,0.14841893,70977.0,70976.0,0.17959404]
[1717566582351,0.14845893,70977.0,70976.0,0.1421]
[1717566583159,0.14945893,70977.0,70976.0,0.1421]
[1717566587564,0.15739874,70977.0,70976.0,0.1421]
[1717566589464,0.15739874,70977.0,70976.0,0.1621]
[1717566590826,0.01297981,70977.0,70976.0,0.1621]
[1717566591098,0.01297981,70977.0,70976.0,0.18078613]
[1717566591355,0.00504,70977.0,70976.0,0.18078613]
[1717566592025,0.00404,70977.0,70976.0,0.32167813]
[1717566592231,0.00404,70977.0,70976.0,0.32767813]
[1717566592232,4e-05,70977.0,70976.0,0.32767813]
[1717566592547,4e-05,70977.0,70976.0,0.33067813]
[1717566593881,4e-05,70977.0,70976.0,0.24387813]
[1717566594285,4e-05,70977.0,70976.0,0.16857813]
[1717566595726,0.00798569,70977.0,70976.0,0.16857813]
[1717566596328,0.00884569,70977.0,70976.0,0.16857813]
[1717566596855,0.00884569,70977.0,70976.0,0.02768613]
[1717566601910,0.00884569,70977.0,70976.0,0.09448613]
[1717566602510,0.00884569,70977.0,70976.0,0.02768613]
[1717566604922,0.15326462,70977.0,70976.0,0.02768613]
[1717566605133,0.52455462,70977.0,70976.0,0.009]
[1717566606567,0.52455462,70977.0,70976.0,0.006]
[1717566606965,0.140898,70974.0,70971.0,0.000946]
[1717566607366,0.235,70972.0,70971.0,0.000946]
[1717566607572,0.37941893,70972.0,70971.0,0.000946]
[1717566607981,0.38735378,70972.0,70971.0,0.000946]
[1717566608397,0.39659683,70972.0,70971.0,0.000946]
[1717566608993,0.53749683,70972.0,70971.0,0.000946]
[1717566610410,0.53749683,70972.0,70971.0,0.002946]
[1717566610615,0.53749683,70972.0,70971.0,0.007946]
[1717566610809,0.53749683,70972.0,70971.0,0.005946]
[1717566611015,0.53749683,70972.0,70971.0,0.0132206]
[1717566611164,0.53749683,70972.0,70971.0,0.005946]
[1717566611368,0.39659683,70972.0,70971.0,0.007946]
[1717566613701,0.39659683,70972.0,70971.0,0.000946]
[1717566614202,0.39659683,70972.0,70971.0,0.001946]
[1717566614489,0.39659683,70972.0,70971.0,0.005946]
[1717566614700,0.39659683,70972.0,70971.0,0.0132206]
[1717566616277,0.16159683,70972.0,70971.0,0.0132206]
[1717566618533,0.15727831,70972.0,70971.0,0.0132206]
[1717566619748,0.23917831,70972.0,70971.0,0.0132206]
[1717566621356,0.23921831,70972.0,70971.0,0.0132206]
[1717566622169,0.24350477,70972.0,70971.0,0.0132206]
[1717566623564,0.16160477,70972.0,70971.0,0.0132206]
[1717566628308,0.23830477,70972.0,70971.0,0.0132206]
[1717566631052,0.16160477,70972.0,70971.0,0.0332206]
[1717566631266,0.01033831,70972.0,70971.0,0.2643226]
[1717566631407,0.0009,70977.0,70976.0,0.02]
[1717566631607,0.14531893,70977.0,70976.0,0.12167185]
[1717566631817,0.15340903,70977.0,70976.0,0.12167185]
[1717566632019,0.15340903,70977.0,70976.0,0.16386898]
[1717566632703,0.15840903,70977.0,70976.0,0.16486898]
[1717566633141,0.16040903,70977.0,70976.0,0.16486898]
[1717566635925,0.16040903,70977.0,70976.0,0.16486898]
[1717566636585,0.16040903,70977.0,70976.0,0.07806898]
[1717566636801,0.16040903,70977.0,70976.0,0.14486898]
[1717566636802,0.16044903,70977.0,70976.0,0.14486898]
[1717566641252,0.16044903,70977.0,70976.0,0.10267185]
[1717566641453,0.16044903,70977.0,70976.0,0.12267185]
[1717566641681,0.16044903,70977.0,70976.0,0.10267185]
[1717566642057,0.16044903,70977.0,70976.0,0.21792408]